{"text_format":"1","workbook":"xlsx","n_sheets":2,"sheets":["Цены","Таблетки"],"not_rendered":{"charts":0,"images":0,"macros":0,"external_links":0,"defined_names":4,"comments":0,"pivot_tables":0},"unopened":[],"bounds":{"document_bytes":16777216,"sheet_cells":100000,"rows_first":2000,"rows_last":500,"rows_between":2000,"halvings":0,"cell_chars":16384,"cell_head_chars":4096},"cells_cut":0,"cells_raw":0,"read":"whole","date_system":"1900"}

{"sheet":"Цены","index":0,"n_rows":12,"n_cols":3,"rows_kept":12,"cut":false,"hidden":false,"merged":[]}
["МНН","ТН","Цена"]
[]
[]
["Парацетамол","Парацетамол, таб 500 мг №10",9.9]
["Парацетамол","Парацетамол, таб 500 мг №10",9.4600000000000009]
["Парацетамол","Парацетамол, таб 500 мг №20",26.51]
["Парацетамол","Парацетамол Медисорб, таб. 500 мг №30",24.3]
["Парацетамол","Парацетамол Медисорб, таб. 500 мг №30",26.1]
["Ривароксабан","Ксарелто, таб п п/о 10 мг №30",3609]
["Ривароксабан","Ксарелто, таб п п/о 10 мг №30",2498.1]
["Ривароксабан","Ксарелто, таб п п/о 10 мг №100",8994]
["Ривароксабан","Ксарелто, таб п п/о 10 мг №100",8624]

{"sheet":"Таблетки","index":1,"n_rows":18,"n_cols":6,"rows_kept":18,"cut":false,"hidden":false,"merged":[]}
[null,null,null,"Пластин","Сумма","Цена"]
["Ривароксабан","табл.",null,{"$f":"_xlfn.LET(_xlpm.x,_xlfn._xlws.FILTER(Цены!$C$4:$C$12,Цены!$A$4:$A$12=A2),_xlpm.y,E2/_xlpm.x,_xlpm.z,_xlpm.x/E2,_xlfn._xlws.FILTER(_xlpm.y,(ROUND(_xlpm.y,1)=_xlpm.y)+(ROUND(_xlpm.z,1)=_xlpm.z)))","v":0.19999999999999998},1798.8,{"$f":"_xlfn.LET(_xlpm.x,_xlfn._xlws.FILTER(Цены!$C$4:$C$12,Цены!$A$4:$A$12=A2),_xlpm.y,E2/_xlpm.x,_xlpm.z,_xlpm.x/E2,_xlfn._xlws.FILTER(_xlpm.x,(ROUND(_xlpm.y,1)=_xlpm.y)+(ROUND(_xlpm.z,1)=_xlpm.z)))","v":8994}]
["Ривароксабан","табл.",null,{"$f":"_xlfn.LET(_xlpm.x,_xlfn._xlws.FILTER(Цены!$C$4:$C$12,Цены!$A$4:$A$12=A3),_xlpm.y,E3/_xlpm.x,_xlpm.z,_xlpm.x/E3,_xlfn._xlws.FILTER(_xlpm.y,(ROUND(_xlpm.y,1)=_xlpm.y)+(ROUND(_xlpm.z,1)=_xlpm.z)))","v":0.19999999999999998},1798.8,{"$f":"_xlfn.LET(_xlpm.x,_xlfn._xlws.FILTER(Цены!$C$4:$C$12,Цены!$A$4:$A$12=A3),_xlpm.y,E3/_xlpm.x,_xlpm.z,_xlpm.x/E3,_xlfn._xlws.FILTER(_xlpm.x,(ROUND(_xlpm.y,1)=_xlpm.y)+(ROUND(_xlpm.z,1)=_xlpm.z)))","v":8994}]
["Ривароксабан","таблетки",null,{"$f":"_xlfn.LET(_xlpm.x,_xlfn._xlws.FILTER(Цены!$C$4:$C$12,Цены!$A$4:$A$12=A4),_xlpm.y,E4/_xlpm.x,_xlpm.z,_xlpm.x/E4,_xlfn._xlws.FILTER(_xlpm.y,(ROUND(_xlpm.y,1)=_xlpm.y)+(ROUND(_xlpm.z,1)=_xlpm.z)))","v":1},3609,{"$f":"_xlfn.LET(_xlpm.x,_xlfn._xlws.FILTER(Цены!$C$4:$C$12,Цены!$A$4:$A$12=A4),_xlpm.y,E4/_xlpm.x,_xlpm.z,_xlpm.x/E4,_xlfn._xlws.FILTER(_xlpm.x,(ROUND(_xlpm.y,1)=_xlpm.y)+(ROUND(_xlpm.z,1)=_xlpm.z)))","v":3609}]
["Ривароксабан","таблетки",null,{"$f":"_xlfn.LET(_xlpm.x,_xlfn._xlws.FILTER(Цены!$C$4:$C$12,Цены!$A$4:$A$12=A5),_xlpm.y,E5/_xlpm.x,_xlpm.z,_xlpm.x/E5,_xlfn._xlws.FILTER(_xlpm.y,(ROUND(_xlpm.y,1)=_xlpm.y)+(ROUND(_xlpm.z,1)=_xlpm.z)))","v":1},3609,{"$f":"_xlfn.LET(_xlpm.x,_xlfn._xlws.FILTER(Цены!$C$4:$C$12,Цены!$A$4:$A$12=A5),_xlpm.y,E5/_xlpm.x,_xlpm.z,_xlpm.x/E5,_xlfn._xlws.FILTER(_xlpm.x,(ROUND(_xlpm.y,1)=_xlpm.y)+(ROUND(_xlpm.z,1)=_xlpm.z)))","v":3609}]
["Ривароксабан","таблетки",null,{"$f":"_xlfn.LET(_xlpm.x,_xlfn._xlws.FILTER(Цены!$C$4:$C$12,Цены!$A$4:$A$12=A6),_xlpm.y,E6/_xlpm.x,_xlpm.z,_xlpm.x/E6,_xlfn._xlws.FILTER(_xlpm.y,(ROUND(_xlpm.y,1)=_xlpm.y)+(ROUND(_xlpm.z,1)=_xlpm.z)))","v":2},7218,{"$f":"_xlfn.LET(_xlpm.x,_xlfn._xlws.FILTER(Цены!$C$4:$C$12,Цены!$A$4:$A$12=A6),_xlpm.y,E6/_xlpm.x,_xlpm.z,_xlpm.x/E6,_xlfn._xlws.FILTER(_xlpm.x,(ROUND(_xlpm.y,1)=_xlpm.y)+(ROUND(_xlpm.z,1)=_xlpm.z)))","v":3609}]
["Ривароксабан","таблетки",null,{"$f":"_xlfn.LET(_xlpm.x,_xlfn._xlws.FILTER(Цены!$C$4:$C$12,Цены!$A$4:$A$12=A7),_xlpm.y,E7/_xlpm.x,_xlpm.z,_xlpm.x/E7,_xlfn._xlws.FILTER(_xlpm.y,(ROUND(_xlpm.y,1)=_xlpm.y)+(ROUND(_xlpm.z,1)=_xlpm.z)))","v":1},3609,{"$f":"_xlfn.LET(_xlpm.x,_xlfn._xlws.FILTER(Цены!$C$4:$C$12,Цены!$A$4:$A$12=A7),_xlpm.y,E7/_xlpm.x,_xlpm.z,_xlpm.x/E7,_xlfn._xlws.FILTER(_xlpm.x,(ROUND(_xlpm.y,1)=_xlpm.y)+(ROUND(_xlpm.z,1)=_xlpm.z)))","v":3609}]
["Ривароксабан","таблетки",null,{"$f":"_xlfn.LET(_xlpm.x,_xlfn._xlws.FILTER(Цены!$C$4:$C$12,Цены!$A$4:$A$12=A8),_xlpm.y,E8/_xlpm.x,_xlpm.z,_xlpm.x/E8,_xlfn._xlws.FILTER(_xlpm.y,(ROUND(_xlpm.y,1)=_xlpm.y)+(ROUND(_xlpm.z,1)=_xlpm.z)))","v":9.9999999999999992E-2},899.4,{"$f":"_xlfn.LET(_xlpm.x,_xlfn._xlws.FILTER(Цены!$C$4:$C$12,Цены!$A$4:$A$12=A8),_xlpm.y,E8/_xlpm.x,_xlpm.z,_xlpm.x/E8,_xlfn._xlws.FILTER(_xlpm.x,(ROUND(_xlpm.y,1)=_xlpm.y)+(ROUND(_xlpm.z,1)=_xlpm.z)))","v":8994}]
["Ривароксабан","таблетки",null,{"$f":"_xlfn.LET(_xlpm.x,_xlfn._xlws.FILTER(Цены!$C$4:$C$12,Цены!$A$4:$A$12=A9),_xlpm.y,E9/_xlpm.x,_xlpm.z,_xlpm.x/E9,_xlfn._xlws.FILTER(_xlpm.y,(ROUND(_xlpm.y,1)=_xlpm.y)+(ROUND(_xlpm.z,1)=_xlpm.z)))","v":9.9999999999999992E-2},899.4,{"$f":"_xlfn.LET(_xlpm.x,_xlfn._xlws.FILTER(Цены!$C$4:$C$12,Цены!$A$4:$A$12=A9),_xlpm.y,E9/_xlpm.x,_xlpm.z,_xlpm.x/E9,_xlfn._xlws.FILTER(_xlpm.x,(ROUND(_xlpm.y,1)=_xlpm.y)+(ROUND(_xlpm.z,1)=_xlpm.z)))","v":8994}]
["Ривароксабан","таблетки",null,{"$f":"_xlfn.LET(_xlpm.x,_xlfn._xlws.FILTER(Цены!$C$4:$C$12,Цены!$A$4:$A$12=A10),_xlpm.y,E10/_xlpm.x,_xlpm.z,_xlpm.x/E10,_xlfn._xlws.FILTER(_xlpm.y,(ROUND(_xlpm.y,1)=_xlpm.y)+(ROUND(_xlpm.z,1)=_xlpm.z)))","v":0.3},2587.1999999999998,{"$f":"_xlfn.LET(_xlpm.x,_xlfn._xlws.FILTER(Цены!$C$4:$C$12,Цены!$A$4:$A$12=A10),_xlpm.y,E10/_xlpm.x,_xlpm.z,_xlpm.x/E10,_xlfn._xlws.FILTER(_xlpm.x,(ROUND(_xlpm.y,1)=_xlpm.y)+(ROUND(_xlpm.z,1)=_xlpm.z)))","v":8624}]
["Ривароксабан","таблетки",null,{"$f":"_xlfn.LET(_xlpm.x,_xlfn._xlws.FILTER(Цены!$C$4:$C$12,Цены!$A$4:$A$12=A11),_xlpm.y,E11/_xlpm.x,_xlpm.z,_xlpm.x/E11,_xlfn._xlws.FILTER(_xlpm.y,(ROUND(_xlpm.y,1)=_xlpm.y)+(ROUND(_xlpm.z,1)=_xlpm.z)))","v":0.3},2587.1999999999998,{"$f":"_xlfn.LET(_xlpm.x,_xlfn._xlws.FILTER(Цены!$C$4:$C$12,Цены!$A$4:$A$12=A11),_xlpm.y,E11/_xlpm.x,_xlpm.z,_xlpm.x/E11,_xlfn._xlws.FILTER(_xlpm.x,(ROUND(_xlpm.y,1)=_xlpm.y)+(ROUND(_xlpm.z,1)=_xlpm.z)))","v":8624}]
["Ривароксабан","таблетки",null,{"$f":"_xlfn.LET(_xlpm.x,_xlfn._xlws.FILTER(Цены!$C$4:$C$12,Цены!$A$4:$A$12=A12),_xlpm.y,E12/_xlpm.x,_xlpm.z,_xlpm.x/E12,_xlfn._xlws.FILTER(_xlpm.y,(ROUND(_xlpm.y,1)=_xlpm.y)+(ROUND(_xlpm.z,1)=_xlpm.z)))","v":9.9999999999999992E-2},862.4,{"$f":"_xlfn.LET(_xlpm.x,_xlfn._xlws.FILTER(Цены!$C$4:$C$12,Цены!$A$4:$A$12=A12),_xlpm.y,E12/_xlpm.x,_xlpm.z,_xlpm.x/E12,_xlfn._xlws.FILTER(_xlpm.x,(ROUND(_xlpm.y,1)=_xlpm.y)+(ROUND(_xlpm.z,1)=_xlpm.z)))","v":8624}]
["Ривароксабан","таблетки",null,{"$f":"_xlfn.LET(_xlpm.x,_xlfn._xlws.FILTER(Цены!$C$4:$C$12,Цены!$A$4:$A$12=A13),_xlpm.y,E13/_xlpm.x,_xlpm.z,_xlpm.x/E13,_xlfn._xlws.FILTER(_xlpm.y,(ROUND(_xlpm.y,1)=_xlpm.y)+(ROUND(_xlpm.z,1)=_xlpm.z)))","v":9.9999999999999992E-2},862.4,{"$f":"_xlfn.LET(_xlpm.x,_xlfn._xlws.FILTER(Цены!$C$4:$C$12,Цены!$A$4:$A$12=A13),_xlpm.y,E13/_xlpm.x,_xlpm.z,_xlpm.x/E13,_xlfn._xlws.FILTER(_xlpm.x,(ROUND(_xlpm.y,1)=_xlpm.y)+(ROUND(_xlpm.z,1)=_xlpm.z)))","v":8624}]
["Ривароксабан","таблетки",null,{"$f":"_xlfn.LET(_xlpm.x,_xlfn._xlws.FILTER(Цены!$C$4:$C$12,Цены!$A$4:$A$12=A14),_xlpm.y,E14/_xlpm.x,_xlpm.z,_xlpm.x/E14,_xlfn._xlws.FILTER(_xlpm.y,(ROUND(_xlpm.y,1)=_xlpm.y)+(ROUND(_xlpm.z,1)=_xlpm.z)))","v":0.19999999999999998},1724.8,{"$f":"_xlfn.LET(_xlpm.x,_xlfn._xlws.FILTER(Цены!$C$4:$C$12,Цены!$A$4:$A$12=A14),_xlpm.y,E14/_xlpm.x,_xlpm.z,_xlpm.x/E14,_xlfn._xlws.FILTER(_xlpm.x,(ROUND(_xlpm.y,1)=_xlpm.y)+(ROUND(_xlpm.z,1)=_xlpm.z)))","v":8624}]
["Ривароксабан","таблетки",null,{"$f":"_xlfn.LET(_xlpm.x,_xlfn._xlws.FILTER(Цены!$C$4:$C$12,Цены!$A$4:$A$12=A15),_xlpm.y,E15/_xlpm.x,_xlpm.z,_xlpm.x/E15,_xlfn._xlws.FILTER(_xlpm.y,(ROUND(_xlpm.y,1)=_xlpm.y)+(ROUND(_xlpm.z,1)=_xlpm.z)))","v":0.19999999999999998},1724.8,{"$f":"_xlfn.LET(_xlpm.x,_xlfn._xlws.FILTER(Цены!$C$4:$C$12,Цены!$A$4:$A$12=A15),_xlpm.y,E15/_xlpm.x,_xlpm.z,_xlpm.x/E15,_xlfn._xlws.FILTER(_xlpm.x,(ROUND(_xlpm.y,1)=_xlpm.y)+(ROUND(_xlpm.z,1)=_xlpm.z)))","v":8624}]
["парацетамол","таблетки",null,{"$f":"_xlfn.LET(_xlpm.x,_xlfn._xlws.FILTER(Цены!$C$4:$C$12,Цены!$A$4:$A$12=A16),_xlpm.y,E16/_xlpm.x,_xlpm.z,_xlpm.x/E16,_xlfn._xlws.FILTER(_xlpm.y,(ROUND(_xlpm.y,1)=_xlpm.y)+(ROUND(_xlpm.z,1)=_xlpm.z)))","v":0.33333333333333331},8.1,{"$f":"_xlfn.LET(_xlpm.x,_xlfn._xlws.FILTER(Цены!$C$4:$C$12,Цены!$A$4:$A$12=A16),_xlpm.y,E16/_xlpm.x,_xlpm.z,_xlpm.x/E16,_xlfn._xlws.FILTER(_xlpm.x,(ROUND(_xlpm.y,1)=_xlpm.y)+(ROUND(_xlpm.z,1)=_xlpm.z)))","v":24.3}]
["парацетамол","таблетки",null,{"$f":"_xlfn.LET(_xlpm.x,_xlfn._xlws.FILTER(Цены!$C$4:$C$12,Цены!$A$4:$A$12=A17),_xlpm.y,E17/_xlpm.x,_xlpm.z,_xlpm.x/E17,_xlfn._xlws.FILTER(_xlpm.y,(ROUND(_xlpm.y,1)=_xlpm.y)+(ROUND(_xlpm.z,1)=_xlpm.z)))","v":0.33333333333333331},8.1,{"$f":"_xlfn.LET(_xlpm.x,_xlfn._xlws.FILTER(Цены!$C$4:$C$12,Цены!$A$4:$A$12=A17),_xlpm.y,E17/_xlpm.x,_xlpm.z,_xlpm.x/E17,_xlfn._xlws.FILTER(_xlpm.x,(ROUND(_xlpm.y,1)=_xlpm.y)+(ROUND(_xlpm.z,1)=_xlpm.z)))","v":24.3}]
["парацетамол","таблетки",null,{"$f":"_xlfn.LET(_xlpm.x,_xlfn._xlws.FILTER(Цены!$C$4:$C$12,Цены!$A$4:$A$12=A18),_xlpm.y,E18/_xlpm.x,_xlpm.z,_xlpm.x/E18,_xlfn._xlws.FILTER(_xlpm.y,(ROUND(_xlpm.y,1)=_xlpm.y)+(ROUND(_xlpm.z,1)=_xlpm.z)))","v":3},79.53,{"$f":"_xlfn.LET(_xlpm.x,_xlfn._xlws.FILTER(Цены!$C$4:$C$12,Цены!$A$4:$A$12=A18),_xlpm.y,E18/_xlpm.x,_xlpm.z,_xlpm.x/E18,_xlfn._xlws.FILTER(_xlpm.x,(ROUND(_xlpm.y,1)=_xlpm.y)+(ROUND(_xlpm.z,1)=_xlpm.z)))","v":26.51}]